bitfinex-derivatives/quotes_BTCF0:USTF0_20241203
["timestamp","ask_amount","ask_price","bid_price","bid_amount"]
[1733210266960,0.62196823,95601.0,95593.0,0.052297]
[1733210267457,0.62296823,95601.0,95600.0,0.109]
[1733210267651,0.63342823,95601.0,95600.0,0.109]
[1733210268953,0.63542823,95601.0,95600.0,0.109]
[1733210269456,0.52186477,95601.0,95600.0,0.1]
[1733210269650,0.52486477,95601.0,95600.0,0.1]
[1733210270047,0.428552,95601.0,95600.0,0.1]
[1733210272063,0.37626,95601.0,95600.0,0.1]
[1733210273651,0.37326,95601.0,95600.0,0.103]
[1733210274058,0.01246,95601.0,95600.0,0.103]
[1733210274256,0.01246,95601.0,95600.0,0.101]
[1733210274657,0.01046,95601.0,95600.0,0.101]
[1733210274857,0.01046,95601.0,95600.0,0.102]
[1733210275659,0.01046,95601.0,95600.0,0.103]
[1733210276167,0.01046,95601.0,95600.0,0.102]
[1733210276364,0.01046,95601.0,95600.0,0.104]
[1733210276759,0.01046,95601.0,95600.0,0.24836]
[1733210277163,0.01046,95601.0,95600.0,0.24636]
[1733210277556,0.01046,95601.0,95600.0,0.24436]
[1733210277762,0.01046,95601.0,95600.0,0.24836]
[1733210277960,0.0026,95620.0,95619.0,0.052283]
[1733210278161,0.052279,95625.0,95619.0,0.052283]
[1733210278366,0.76142748,95630.0,95616.0,0.052284]
[1733210278564,0.052277,95629.0,95623.0,0.05228]
[1733210278865,0.09630139,95628.0,95623.0,0.05228]
[1733210279076,0.14858039,95627.0,95623.0,0.05228]
[1733210279367,0.09630139,95626.0,95623.0,0.05228]
[1733210279565,0.05228,95624.0,95622.0,0.0026]
[1733210279865,0.05228,95624.0,95623.0,0.001]
[1733210280370,0.05228,95624.0,95622.0,0.0026]
[1733210280667,0.05228,95624.0,95623.0,0.001]
[1733210280967,0.14858623,95624.0,95623.0,0.001]
[1733210281958,0.14858623,95624.0,95524.0,0.31288684]
[1733210281959,0.052292,95602.0,95600.0,0.31754973]
[1733210282158,0.052292,95602.0,95600.0,0.24432]
[1733210282467,0.052292,95602.0,95600.0,0.1]
[1733210282769,0.0331,95601.0,95600.0,0.1]
[1733210283263,0.0331,95601.0,95600.0,0.109]
[1733210283757,0.12942272,95601.0,95600.0,0.103]
[1733210285268,0.13142272,95601.0,95600.0,0.1]
[1733210285464,0.13142272,95601.0,95589.0,1e-08]
[1733210285465,0.052298,95590.0,95589.0,1e-08]
[1733210285769,0.7138214,95590.0,95589.0,1e-08]
[1733210285976,0.92272971,95590.0,95589.0,1e-08]
[1733210286358,0.81015438,95590.0,95589.0,1e-08]
[1733210286567,1.11015438,95590.0,95589.0,1e-08]
[1733210286967,0.82027438,95590.0,95589.0,0.00100001]
[1733210287673,0.8202905,95590.0,95589.0,0.00300001]
[1733210287860,0.7323014,95590.0,95589.0,0.00300001]
[1733210288471,0.7323014,95590.0,95589.0,0.00100001]
[1733210288673,0.82864689,95590.0,95589.0,0.00100001]
[1733210288972,0.82864689,95590.0,95556.0,0.14548]
[1733210288973,1.23826617,95590.0,95556.0,0.14548]
[1733210289175,0.3608,95561.0,95556.0,0.14548]
[1733210289375,0.3608,95561.0,95558.0,0.052316]
[1733210290178,0.3608,95561.0,95560.0,0.02292362]
[1733210291064,0.3608,95561.0,95560.0,0.02592362]
[1733210291570,0.3608,95561.0,95560.0,0.005]
[1733210291766,0.3618,95561.0,95560.0,0.006]
[1733210291974,0.36191158,95561.0,95560.0,0.006]
[1733210296272,0.36191158,95561.0,95526.0,0.3712]
[1733210296273,0.81804955,95561.0,95536.0,0.00010761]
[1733210296477,0.3608,95537.0,95536.0,0.00010761]
[1733210297474,0.3608,95537.0,95536.0,0.00910761]
[1733210298072,0.3608,95537.0,95536.0,0.00010761]
[1733210298278,0.3608,95537.0,95536.0,0.00510761]
[1733210298883,0.3618,95537.0,95536.0,0.00510761]
[1733210299785,0.3608,95537.0,95536.0,0.00410761]
[1733210300077,0.3758,95537.0,95536.0,0.00110761]
[1733210303285,0.407,95537.0,95536.0,0.00110761]
[1733210304584,0.052333,95526.0,95525.0,0.0026]
[1733210304785,0.052333,95526.0,95490.0,0.02237073]
[1733210304786,0.052339,95515.0,95514.0,0.0026]
[1733210304976,0.052347,95501.0,95500.0,1.1]
[1733210305581,0.05243307,95501.0,95500.0,1.1]
[1733210306387,0.71489014,95501.0,95500.0,1.1]
[1733210306691,0.052354,95488.0,95487.0,0.01]
[1733210306990,0.052354,95488.0,95487.0,1e-06]
[1733210306991,0.558754,95488.0,95487.0,1e-06]
[1733210307175,1.12862785,95488.0,95487.0,1e-06]
[1733210307376,1.12862785,95488.0,95449.0,0.0104]
[1733210307377,0.052362,95474.0,95473.0,5.6e-07]
[1733210307584,0.558762,95474.0,95473.0,5.6e-07]
[1733210307786,1.1279806,95474.0,95473.0,5.6e-07]
[1733210307997,1.1073607,95474.0,95473.0,5.6e-07]
[1733210308286,1.14141005,95474.0,95473.0,5.6e-07]
[1733210308889,0.69581005,95474.0,95473.0,0.00100056]
[1733210309497,0.99881005,95474.0,95473.0,5.6e-07]
[1733210309879,0.99881005,95474.0,95445.0,0.052378]
[1733210310086,0.99881005,95474.0,95444.0,0.14564]
[1733210310087,0.3608,95452.0,95444.0,0.14564]
[1733210310486,0.3608,95452.0,95449.0,0.052376]
[1733210310688,0.3608,95452.0,95450.0,0.052375]
[1733210311585,0.41714926,95474.0,95469.0,0.052365]
[1733210311782,0.36390725,95474.0,95468.0,0.052365]
[1733210312082,0.36390725,95474.0,95460.0,0.14564]
[1733210312083,0.15692399,95466.0,95460.0,0.14564]
[1733210312386,0.052367,95466.0,95460.0,0.14564]
[1733210312592,0.17213308,95470.0,95460.0,0.14564]
[1733210312783,0.1581291,95465.0,95462.0,0.052368]
[1733210312988,0.1581291,95469.0,95463.0,0.052368]
[1733210313294,0.15725887,95467.0,95461.0,0.0303]
[1733210313489,0.052368,95463.0,95459.0,0.3608]
[1733210314293,0.05237,95460.0,95455.0,0.14564]
[1733210314481,0.052374,95452.0,95445.0,0.07334545]
[1733210314681,0.052374,95452.0,95446.0,0.198057]
[1733210314891,0.3608,95454.0,95443.0,0.3608]
[1733210315083,0.3608,95454.0,95444.0,0.14568]
[1733210315594,0.052378,95445.0,95444.0,0.14568]
[1733210315891,0.052378,95445.0,95443.0,0.3608]
[1733210316394,0.052378,95445.0,95444.0,0.002]
[1733210316993,0.052378,95445.0,95444.0,0.001]
[1733210317197,0.052374,95452.0,95444.0,0.001]
[1733210317394,0.052375,95450.0,95444.0,0.001]
[1733210317589,0.3608,95454.0,95444.0,0.001]
[1733210317789,0.052377,95446.0,95444.0,0.001]
[1733210318290,7.5e-05,95445.0,95444.0,0.001]
[1733210318493,7.5e-05,95445.0,95443.0,0.3618]
[1733210318494,0.052378,95444.0,95443.0,0.3618]
[1733210318692,0.51780598,95445.0,95429.0,0.0006]
[1733210318990,0.51780598,95445.0,95413.0,0.3608]
[1733210318991,0.052388,95426.0,95413.0,0.3608]
[1733210319886,0.3608,95430.0,95422.0,0.20295]
[1733210320087,0.3608,95430.0,95422.0,0.15056]
[1733210320288,0.052385,95433.0,95429.0,0.052387]
[1733210320493,0.008,95444.0,95427.0,0.35242]
[1733210320494,0.0026,95432.0,95430.0,0.052386]
[1733210320684,0.008,95444.0,95431.0,0.1808]
[1733210320685,0.052385,95433.0,95431.0,0.1808]
[1733210321292,0.052385,95433.0,95432.0,0.1506]
[1733210321884,0.052385,95433.0,95431.0,0.0302]
[1733210322287,0.3608,95436.0,95431.0,0.0302]
[1733210322483,0.3608,95436.0,95435.0,0.052383]
[1733210322684,0.0026,95440.0,95438.0,0.052381]
[1733210323186,0.0026,95440.0,95439.0,0.3608]
[1733210323386,7.5e-05,95445.0,95439.0,0.3608]
[1733210323688,7.5e-05,95445.0,95444.0,0.052378]
[1733210323897,7.5e-05,95445.0,95444.0,0.202978]
[1733210324088,0.052371,95458.0,95454.0,0.052372]
[1733210324393,0.052371,95458.0,95444.0,0.1506]
[1733210324394,0.15649059,95457.0,95455.0,0.0312]
[1733210324599,0.20886259,95457.0,95455.0,0.0312]
[1733210324895,0.052372,95457.0,95455.0,0.0312]
[1733210325195,0.15662108,95456.0,95455.0,0.0312]
[1733210325791,0.3608,95465.0,95455.0,0.0312]
[1733210325792,0.004,95457.0,95455.0,0.0312]
[1733210325994,0.007,95457.0,95456.0,0.202972]
[1733210326393,0.003,95457.0,95456.0,0.202972]
[1733210326597,0.413167,95465.0,95456.0,0.1506]
[1733210326892,8.082e-05,95464.0,95461.0,0.052369]
[1733210327297,8.082e-05,95464.0,95456.0,0.1506]
[1733210327298,8.082e-05,95464.0,95462.0,0.052368]
[1733210328099,0.05244882,95464.0,95462.0,0.052368]
[1733210328290,8.082e-05,95464.0,95462.0,0.052368]
[1733210328597,0.00708082,95464.0,95462.0,0.052368]
[1733210328899,0.01546082,95464.0,95455.0,0.0312]
[1733210329117,0.01546082,95464.0,95446.0,0.033]
[1733210329118,0.052377,95447.0,95446.0,0.033]
[1733210329396,0.052377,95447.0,95432.0,0.3608]
[1733210329600,0.052384,95434.0,95433.0,0.033]
[1733210329898,0.01047,95434.0,95433.0,0.033]
[1733210330504,0.01047,95434.0,95433.0,0.1836]
[1733210331301,0.01147,95434.0,95433.0,0.1856]
[1733210331695,0.01147,95434.0,95433.0,0.035]
[1733210332094,0.01147,95434.0,95433.0,0.039]
[1733210332999,0.01147,95434.0,95433.0,0.42076582]
[1733210333202,0.01147,95434.0,95433.0,0.039]
[1733210333501,0.01147,95434.0,95433.0,0.006]
[1733210333502,0.16846444,95434.0,95433.0,0.006]
[1733210334006,0.52926444,95434.0,95433.0,0.006]
[1733210334303,0.52926444,95434.0,95410.0,0.052397]
[1733210334304,0.05239,95422.0,95412.0,0.1506]
[1733210334503,0.3608,95421.0,95408.0,0.1506]
[1733210334695,0.51844981,95421.0,95408.0,0.1506]
[1733210335396,0.51844981,95421.0,95403.0,0.0308]
[1733210335594,0.51844981,95421.0,95420.0,0.00107715]
[1733210337008,0.15764981,95421.0,95420.0,0.00107715]
[1733210337206,0.15864981,95421.0,95420.0,0.00107715]
[1733210337511,0.001,95421.0,95420.0,0.00107715]
[1733210338097,0.37134627,95434.0,95420.0,0.00107715]
[1733210338297,0.37134627,95434.0,95432.0,0.052385]
[1733210338298,0.01054627,95434.0,95432.0,0.052385]
[1733210338507,0.01054627,95434.0,95433.0,0.1506]
[1733210339999,0.01054627,95434.0,95427.0,0.3608]
[1733210340206,0.052387,95429.0,95428.0,0.1506]
[1733210340512,0.01154627,95434.0,95429.0,0.052386]
[1733210340706,0.01154627,95434.0,95433.0,0.052384]
[1733210340902,0.01154627,95434.0,95433.0,0.053384]
[1733210341103,0.01154627,95434.0,95433.0,0.203984]
[1733210341499,0.01054627,95434.0,95433.0,0.203984]
[1733210342009,0.01054627,95434.0,95433.0,0.202984]
[1733210343609,0.01054627,95434.0,95433.0,0.1506]
[1733210343819,0.01054627,95434.0,95433.0,0.1516]
[1733210347815,1e-08,95440.0,95439.0,0.052381]
[1733210348209,0.00838001,95440.0,95439.0,0.052381]
[1733210348617,0.00847231,95440.0,95439.0,0.052381]
[1733210348811,0.052367,95465.0,95459.0,0.05237]
[1733210349115,0.1657056,95464.0,95458.0,0.15316]
[1733210349316,0.1657056,95464.0,95462.0,0.052368]
[1733210349612,0.14327,95463.0,95458.0,0.15316]
[1733210349911,0.195638,95463.0,95458.0,0.15316]
[1733210350318,0.14327,95463.0,95457.0,0.3608]
[1733210350506,0.052369,95461.0,95457.0,0.3608]
[1733210351209,0.01047,95460.0,95457.0,0.3608]
[1733210351413,0.01047,95460.0,95458.0,0.052371]
[1733210352420,0.01047,95460.0,95459.0,0.15316]
[1733210353817,0.01447,95460.0,95459.0,0.15316]
[1733210354014,0.01847,95460.0,95459.0,0.15316]
[1733210354621,0.01947,95460.0,95459.0,0.15316]
[1733210357918,0.01947,95460.0,95459.0,0.51396]
[1733210358819,0.01947,95460.0,95459.0,0.53492506]
[1733210361018,0.01947,95460.0,95459.0,0.38176506]
[1733210361219,0.01947,95460.0,95459.0,0.53488506]
[1733210361616,0.01947,95460.0,95459.0,0.38176506]
[1733210361822,0.01947,95460.0,95459.0,0.53488506]
[1733210362411,0.01947,95460.0,95459.0,0.58725506]
[1733210363122,0.01947,95460.0,95459.0,0.43413506]
[1733210363314,0.01947,95460.0,95459.0,0.59329506]
[1733210366823,0.01947,95460.0,95459.0,0.43413506]
[1733210367029,0.01947,95460.0,95459.0,0.59329506]
[1733210367729,0.02785,95460.0,95459.0,0.59329506]
[1733210368132,0.02785,95460.0,95459.0,0.43413506]
[1733210368430,0.02785,95460.0,95459.0,0.59329506]
[1733210369528,0.0011,95469.0,95459.0,0.59329506]
[1733210369728,0.0011,95469.0,95468.0,0.413165]
[1733210370432,0.0026,95482.0,95468.0,0.3608]
[1733210370740,0.0325,95484.0,95468.0,0.3608]
[1733210370741,0.009,95469.0,95468.0,0.3608]
[1733210370920,0.009,95469.0,95468.0,0.413165]
[1733210371119,0.009,95469.0,95468.0,0.572285]
[1733210371525,0.009,95469.0,95468.0,0.573285]
[1733210371526,0.015,95469.0,95468.0,0.573285]
[1733210372126,0.17213575,95469.0,95468.0,0.001]
[1733210372320,0.29877704,95469.0,95468.0,0.001]
[1733210372524,0.14164129,95469.0,95468.0,0.001]
[1733210372725,0.29792001,95469.0,95468.0,0.001]
[1733210372929,0.28892001,95469.0,95468.0,0.001]
[1733210373128,0.29192001,95469.0,95468.0,0.001]
[1733210373431,0.28592001,95469.0,95467.0,0.09951]
[1733210373632,0.09644129,95468.0,95467.0,0.09951]
[1733210375047,0.09944129,95468.0,95467.0,0.09951]
[1733210375246,0.10144129,95468.0,95467.0,0.25863]
[1733210376851,0.09844129,95468.0,95467.0,0.25863]
[1733210377148,0.09944129,95468.0,95467.0,0.25863]
[1733210377341,0.09943732,95468.0,95467.0,0.25863]
[1733210378246,0.003,95468.0,95467.0,0.25863]
[1733210378451,0.09943724,95468.0,95467.0,0.25863]
[1733210378653,0.003,95468.0,95467.0,0.25863]
[1733210380251,0.09943723,95468.0,95467.0,0.25863]
[1733210380443,0.003,95468.0,95467.0,0.25863]
[1733210381844,0.003,95468.0,95467.0,0.27959123]
[1733210384852,0.01414,95470.0,95468.0,0.052365]
[1733210385160,0.14487227,95496.0,95495.0,0.05235]
[1733210385357,0.12862516,95496.0,95495.0,0.21147]
[1733210385544,0.09642516,95496.0,95495.0,0.21147]
[1733210386151,0.16972516,95496.0,95495.0,0.21147]
[1733210386351,0.0753,95496.0,95495.0,0.21147]
[1733210387454,0.0763,95496.0,95495.0,0.21147]
[1733210387658,0.0763,95496.0,95495.0,0.2308412]
[1733210389154,0.0733,95496.0,95495.0,0.2338412]
[1733210389357,0.0733,95496.0,95495.0,0.2348412]
[1733210389553,0.0733,95496.0,95495.0,0.2318412]
[1733210389759,0.0743,95496.0,95495.0,0.2378412]
[1733210389960,0.0743,95496.0,95495.0,0.2368412]
[1733210390157,0.0743,95496.0,95495.0,0.2398412]
[1733210392251,0.0743,95496.0,95495.0,0.24138802]
[1733210393250,0.0743,95496.0,95495.0,0.23654802]
[1733210397762,0.0743,95496.0,95495.0,0.59734802]
[1733210397963,0.0743,95496.0,95495.0,0.62924802]
[1733210399269,0.001,95496.0,95495.0,0.62924802]
[1733210399460,1e-08,95501.0,95500.0,0.052348]
[1733210399770,0.00837001,95501.0,95500.0,0.052348]
[1733210400361,1e-08,95501.0,95500.0,0.052348]
[1733210400561,1e-08,95501.0,95500.0,0.413148]
[1733210400867,1e-08,95501.0,95500.0,0.419148]
[1733210402063,1e-08,95501.0,95500.0,0.43910311]
[1733210402470,0.0961,95531.0,95515.0,0.052339]
[1733210402665,0.0961,95531.0,95515.0,0.413139]
[1733210402966,0.0961,95531.0,95515.0,0.567379]
[1733210402967,0.11502135,95530.0,95515.0,0.567379]
[1733210403657,0.00294,95516.0,95515.0,0.413139]
[1733210403868,0.00294,95516.0,95515.0,0.3608]
[1733210404073,0.00294,95516.0,95500.0,0.3648]
[1733210404074,0.052345,95506.0,95503.0,0.15424]
[1733210404370,0.00294,95516.0,95503.0,0.15424]
[1733210404371,0.149845,95505.0,95503.0,0.15424]
[1733210404670,0.149845,95505.0,95500.0,0.15424]
[1733210404671,0.052346,95503.0,95500.0,0.15424]
[1733210405868,0.00837,95504.0,95500.0,0.15424]
[1733210406466,0.00837,95504.0,95503.0,0.003]
[1733210407067,0.00837,95504.0,95500.0,0.16024]
[1733210407261,0.00837,95504.0,95502.0,0.052347]
[1733210407670,0.00837,95504.0,95503.0,0.003]
[1733210408963,0.00094,95516.0,95515.0,0.052339]
[1733210409164,0.00094,95516.0,95515.0,0.567379]
[1733210409866,0.00094,95516.0,95515.0,0.51504]
[1733210410066,0.00094,95516.0,95515.0,0.15424]
[1733210410067,0.00494,95516.0,95515.0,0.15424]
[1733210410265,0.057279,95516.0,95515.0,0.15424]
[1733210410461,0.00494,95516.0,95509.0,0.15424]
[1733210410661,0.052342,95510.0,95509.0,0.15424]
[1733210410867,0.0631,95515.0,95509.0,0.15424]
[1733210411067,0.0631,95515.0,95504.0,0.3608]
[1733210411267,0.0631,95515.0,95505.0,0.15424]
[1733210411460,0.0631,95515.0,95508.0,0.052343]
[1733210411661,0.0631,95515.0,95505.0,0.15424]
[1733210411867,0.0631,95515.0,95509.0,0.052342]
[1733210412058,0.0631,95515.0,95506.0,0.15424]
[1733210412469,0.0631,95515.0,95507.0,0.15424]
[1733210412772,0.001,95510.0,95507.0,0.15424]
[1733210412959,0.001,95510.0,95507.0,0.206584]
[1733210413165,0.0301,95509.0,95508.0,0.052343]
[1733210413366,0.0301,95509.0,95507.0,0.15424]
[1733210413766,0.0301,95509.0,95507.0,0.206584]
[1733210413966,0.0301,95509.0,95507.0,0.052344]
[1733210414165,0.0301,95509.0,95508.0,0.15424]
[1733210415867,0.0311,95509.0,95508.0,0.15424]
[1733210416970,0.001,95509.0,95508.0,0.15424]
[1733210417474,0.001,95509.0,95508.0,0.18574]
[1733210418568,0.001,95509.0,95508.0,0.20568206]
[1733210421472,0.00837,95517.0,95516.0,0.052339]
[1733210421679,0.00837,95517.0,95516.0,0.413139]
[1733210422582,0.01137,95517.0,95516.0,0.567379]
[1733210423378,0.01537,95517.0,95516.0,0.567379]
[1733210426978,0.01537,95517.0,95516.0,0.563139]
[1733210429179,0.0026,95527.0,95526.0,0.052333]
[1733210429380,0.03,95539.0,95536.0,0.052328]
[1733210429381,0.0026,95537.0,95536.0,0.052328]
[1733210429681,0.03,95539.0,95536.0,0.15]
[1733210429888,0.03,95539.0,95538.0,0.052327]
[1733210431189,0.036,95539.0,95534.0,0.0026]
[1733210431487,0.052328,95535.0,95534.0,0.0026]
[1733210431685,0.11262273,95538.0,95526.0,0.3608]
[1733210431881,0.052333,95527.0,95526.0,0.3608]
[1733210432078,0.11262273,95535.0,95526.0,0.3608]
[1733210432282,0.11502135,95536.0,95526.0,0.3608]
[1733210432479,0.112625,95535.0,95527.0,0.15]
[1733210432680,0.00837,95537.0,95535.0,0.052328]
[1733210434487,0.01137,95537.0,95535.0,0.052328]
[1733210434686,0.01137,95537.0,95536.0,0.3608]
[1733210436289,0.001,95537.0,95536.0,0.3608]
[1733210436892,0.11260177,95562.0,95539.0,0.052326]
[1733210437085,0.11260177,95562.0,95539.0,0.15]
[1733210437284,0.09636465,95561.0,95554.0,0.052318]
[1733210437591,0.211386,95560.0,95555.0,0.15]
[1733210437788,0.09636465,95559.0,95556.0,0.14996]
[1733210437983,0.09636437,95558.0,95556.0,0.14996]
[1733210438182,0.09636437,95557.0,95556.0,0.14996]
[1733210439591,0.09636464,95557.0,95556.0,0.14996]
[1733210440389,0.10136464,95557.0,95556.0,0.14996]
[1733210440593,0.10436464,95557.0,95556.0,0.14996]
[1733210443687,0.10436464,95557.0,95550.0,0.44048]
[1733210443904,0.052319,95553.0,95551.0,0.14996]
[1733210444199,0.0334,95552.0,95551.0,0.14996]
[1733210445194,0.0653,95552.0,95551.0,0.14996]
[1733210445800,0.0653,95552.0,95550.0,0.44048]
[1733210445801,0.05232,95551.0,95550.0,0.44048]
[1733210446103,0.05232,95551.0,95550.0,0.14996]
[1733210446500,0.16493045,95551.0,95550.0,0.14996]
[1733210447296,0.05432,95551.0,95550.0,0.14996]
[1733210447497,0.05532,95551.0,95550.0,0.14996]
[1733210447693,0.05532,95551.0,95549.0,0.05232]
[1733210449004,0.05432,95551.0,95549.0,0.05232]
[1733210449301,0.05532,95551.0,95549.0,0.05232]
[1733210449696,0.05432,95551.0,95549.0,0.05232]
[1733210450896,0.11260931,95550.0,95549.0,0.05232]
[1733210452191,0.11360931,95550.0,95549.0,0.05232]
[1733210452397,0.001,95550.0,95549.0,0.05232]
[1733210452795,0.01037,95550.0,95549.0,0.05232]
[1733210455599,0.12297662,95550.0,95549.0,0.05232]
[1733210455997,0.052322,95547.0,95546.0,0.14696]
[1733210456197,0.01037,95550.0,95543.0,0.0026]
[1733210456198,0.052324,95544.0,95543.0,0.0026]
[1733210456409,0.052324,95544.0,95530.0,0.00056]
[1733210456410,0.052326,95539.0,95538.0,0.0026]
[1733210456606,0.052326,95539.0,95517.0,0.36122]
[1733210456607,0.052328,95536.0,95532.0,0.0026]
[1733210457301,0.052328,95536.0,95533.0,0.052329]
[1733210458109,0.052328,95536.0,95534.0,0.052329]
[1733210458805,0.052328,95536.0,95535.0,0.00456991]
[1733210459007,0.053328,95536.0,95535.0,0.01056991]
[1733210459505,0.052328,95536.0,95535.0,0.00156991]
[1733210462610,0.001,95536.0,95535.0,0.00156991]
[1733210462927,0.001,95536.0,95535.0,0.05389791]
[1733210463206,0.004,95536.0,95535.0,0.05389791]
[1733210463402,0.003,95536.0,95535.0,0.05389791]
[1733210463602,0.002,95536.0,95535.0,0.05389791]
[1733210463808,0.004,95536.0,95535.0,0.05389791]
[1733210464213,0.004,95536.0,95535.0,0.00156991]
[1733210464910,0.002,95536.0,95535.0,0.00156991]
[1733210465309,0.052328,95537.0,95535.0,0.00156991]
[1733210465801,0.001,95536.0,95535.0,0.00156991]
[1733210466003,0.002,95536.0,95535.0,0.00156991]
[1733210466622,0.003,95537.0,95535.0,0.00156991]
[1733210467105,0.003,95537.0,95536.0,0.0654]
[1733210467509,0.0026,95544.0,95536.0,0.2124]
[1733210467711,0.0026,95544.0,95542.0,0.3608]
[1733210467910,0.0026,95544.0,95543.0,0.43996]
[1733210468518,0.01097,95544.0,95543.0,0.43996]
[1733210469413,0.01097,95544.0,95543.0,0.44196]
[1733210470114,0.01097,95544.0,95543.0,0.44296]
[1733210474519,0.01934,95544.0,95543.0,0.44296]
[1733210475416,0.01934,95544.0,95543.0,0.44295998]
[1733210477705,0.3608,95573.0,95543.0,0.74295998]
[1733210477911,0.11258778,95572.0,95560.0,0.11502135]
[1733210478106,0.11258778,95572.0,95561.0,0.25066]
[1733210478718,0.11258778,95572.0,95561.0,0.21776]
[1733210478908,0.11258778,95572.0,95562.0,0.0329]
[1733210479523,0.00837,95571.0,95562.0,0.0329]
[1733210479918,0.00837,95571.0,95561.0,0.14696]
[1733210481019,0.00837,95570.0,95561.0,0.14696]
[1733210482419,0.00837,95570.0,95564.0,0.052312]
[1733210483214,0.00837,95570.0,95561.0,0.14696]
[1733210483410,0.00837,95570.0,95562.0,0.052313]
[1733210483724,0.00837,95570.0,95563.0,0.052313]
[1733210483922,0.00837,95570.0,95564.0,0.052312]
[1733210484115,0.00937,95570.0,95565.0,0.14544]
[1733210484427,0.01037,95570.0,95565.0,0.14544]
[1733210484921,0.00937,95570.0,95565.0,0.14544]
[1733210485123,0.00937,95570.0,95566.0,0.14544]
[1733210485913,0.00937,95570.0,95568.0,0.05231]
[1733210486219,0.00837,95570.0,95568.0,0.05231]
[1733210486521,0.00937,95570.0,95568.0,0.05231]
[1733210487024,0.01037,95570.0,95568.0,0.05231]
[1733210487227,0.01137,95570.0,95568.0,0.05231]
[1733210487612,0.01237,95570.0,95568.0,0.05231]
[1733210488025,0.01337,95570.0,95568.0,0.05231]
[1733210488920,0.052318,95555.0,95550.0,0.05232]
[1733210489121,0.052319,95553.0,95550.0,0.05232]
[1733210489425,0.3608,95558.0,95554.0,0.052318]
[1733210489720,0.052317,95556.0,95554.0,0.052318]
[1733210489923,0.3608,95558.0,95556.0,0.052317]
[1733210491413,0.3608,95558.0,95557.0,0.052316]
[1733210491414,0.003,95558.0,95557.0,0.052316]
[1733210491713,0.007,95558.0,95557.0,0.052316]
[1733210493216,0.003,95558.0,95557.0,0.052316]
[1733210493425,0.0026,95568.0,95557.0,0.36090135]
[1733210493625,0.00837,95570.0,95569.0,0.05231]
[1733210493818,0.0026,95580.0,95579.0,0.052304]
[1733210494018,0.0026,95590.0,95589.0,0.052299]
[1733210494217,0.052295,95597.0,95591.0,0.0026]
[1733210495329,0.11256015,95598.0,95591.0,0.0026]
[1733210495530,0.0693,95599.0,95594.0,0.052296]
[1733210495722,0.0693,95599.0,95597.0,0.052294]
[1733210495919,0.07766,95599.0,95597.0,0.052294]
[1733210497221,0.08902,95599.0,95597.0,0.052294]
[1733210497529,0.05352,95599.0,95597.0,0.053294]
[1733210497719,0.05052,95599.0,95597.0,0.053294]
[1733210498024,0.05052,95599.0,95597.0,0.056294]
[1733210498421,0.05052,95599.0,95597.0,0.057294]
[1733210499123,0.01672,95599.0,95597.0,0.057294]
[1733210501224,0.01672,95599.0,95597.0,0.005]
[1733210501434,0.069014,95599.0,95598.0,0.1454]
[1733210502222,0.069014,95599.0,95597.0,0.005]
[1733210502526,0.069014,95599.0,95598.0,0.1454]
[1733210503038,0.069014,95599.0,95598.0,0.1484]
[1733210503424,0.069014,95599.0,95598.0,0.001]
[1733210503729,0.429814,95599.0,95598.0,0.001]
[1733210504030,0.052295,95597.0,95596.0,0.1454]
[1733210506636,0.052295,95597.0,95596.0,0.001]
[1733210506930,0.052295,95597.0,95596.0,0.004]
[1733210508534,0.052297,95592.0,95591.0,0.0026]
[1733210509132,0.51025678,95592.0,95567.0,0.3608]
[1733210509432,0.3608,95575.0,95567.0,0.558511]
[1733210509625,0.05231,95570.0,95567.0,0.558511]
[1733210509831,0.05231,95570.0,95567.0,0.413111]
[1733210510223,0.3608,95575.0,95560.0,0.052314]
[1733210510424,0.3608,95575.0,95551.0,0.0329]
[1733210510425,0.052311,95568.0,95562.0,0.052313]
[1733210510627,0.052311,95568.0,95567.0,0.02393593]
[1733210512634,0.052311,95568.0,95567.0,0.02093593]
[1733210512946,0.052311,95568.0,95567.0,0.02393593]
[1733210513238,0.052311,95568.0,95567.0,0.02193593]
[1733210513432,0.052311,95568.0,95567.0,0.02393593]
[1733210515628,0.052311,95568.0,95567.0,0.02293593]
[1733210515827,0.053311,95568.0,95567.0,0.02293593]
[1733210516029,0.054311,95568.0,95567.0,0.02093593]
[1733210516635,0.062681,95568.0,95567.0,0.02093593]
[1733210519524,0.062681,95568.0,95567.0,0.16625593]
[1733210520326,0.01037,95568.0,95551.0,0.05383592]
[1733210520525,0.01037,95568.0,95551.0,0.02093592]
[1733210520526,0.413116,95558.0,95551.0,0.02093592]
[1733210520730,0.413116,95558.0,95541.0,0.36236984]
[1733210520924,0.413116,95558.0,95541.0,0.50768984]
[1733210520925,0.57040578,95558.0,95541.0,0.50768984]
[1733210521331,0.51808978,95558.0,95548.0,0.02094429]
[1733210521544,0.0323,95566.0,95553.0,0.14532]
[1733210521545,0.084612,95566.0,95553.0,0.14532]
[1733210521740,0.052312,95566.0,95549.0,0.4625]
[1733210522043,0.3608,95567.0,95558.0,0.14536]
[1733210522539,0.00937,95568.0,95558.0,0.50616]
[1733210522736,0.00837,95568.0,95565.0,0.052312]
[1733210522935,0.00837,95568.0,95566.0,0.413111]
[1733210523532,0.00837,95568.0,95566.0,0.3608]
[1733210523842,0.00837,95568.0,95567.0,0.14536]
[1733210526545,0.00837,95568.0,95566.0,0.003]
[1733210526546,0.00837,95568.0,95566.0,0.005]
[1733210526739,0.060681,95568.0,95566.0,0.005]
[1733210527045,0.19957682,95567.0,95559.0,0.0026]
[1733210527251,0.413115,95560.0,95559.0,0.0026]